fUST/lending_fUST_20250131
["ID","MTS","AMOUNT","RATE_DAILY","PERIOD"]
[351057452,1738313438845,-354.392988,0.00019452,2]
[351057453,1738313438855,-354.392988,0.00019452,2]
[351057454,1738313438865,-354.392988,0.00019452,2]
[351057455,1738313438874,-354.392988,0.00019452,2]
[351057456,1738313438883,-704.5179467,0.00019452,2]
[351057457,1738313438894,-1278.62,0.0001949,3]
[351057458,1738313438904,-639.31,0.0001949,3]
[351057459,1738313438914,-319.66,0.0001949,3]
[351057460,1738313438924,-246.24229999,0.00019498,2]
[351057461,1738313438933,-5074.03990205,0.00019499,5]
[351057462,1738313438943,-460.35219592,0.00019499,5]
[351057463,1738313438952,-500.0,0.00019499,2]
[351057464,1738313438962,-500.0,0.00019499,2]
[351057465,1738313438972,-517.53386027,0.00019499,2]
[351057466,1738313438983,-251.69154954,0.00019499,2]
[351057467,1738313438993,-500.0,0.00019499,2]
[351057468,1738313439002,-573.23733732,0.00019499,2]
[351057469,1738313439012,-500.0,0.00019499,2]
[351057470,1738313439022,-500.0,0.00019499,2]
[351057471,1738313439031,-504.09540853,0.00019499,2]
[351057472,1738313439041,-500.0,0.00019499,2]
[351057473,1738313439050,-186.95702424,0.00019499,2]
[351057474,1738313439059,-32035.55030429,0.000195,2]
[351057475,1738313439071,-15772.42930982,0.000195,2]
[351057476,1738313439083,-338.0,0.000195,8]
[351057477,1738313439092,-699.46577462,0.00019531,2]
[351057478,1738313439101,-302.96970909,0.0001957,2]
[351057479,1738313439110,-160.0,0.00019577,4]
[351057480,1738313439119,-500.0,0.00019585,2]
[351057481,1738313439129,-500.0,0.00019585,2]
[351057482,1738313439138,-699.46577462,0.00019631,2]
[351057483,1738313439147,-500.0,0.00019636,2]
[351057484,1738313439157,-500.0,0.00019636,2]
[351057485,1738313439166,-700.0,0.00019644,2]
[351057486,1738313439175,-500.0,0.00019692,2]
[351057487,1738313439184,-500.0,0.00019722,2]
[351057488,1738313439194,-500.0,0.00019722,2]
[351057489,1738313439203,-699.46577462,0.00019731,2]
[351057490,1738313439213,-302.96970909,0.0001976,2]
[351057491,1738313439224,-500.0,0.00019773,2]
[351057492,1738313439234,-500.0,0.00019773,2]
[351057493,1738313439243,-500.0,0.00019824,2]
[351057494,1738313439252,-699.46577462,0.00019831,2]
[351057495,1738313439262,-500.0,0.00019859,2]
[351057496,1738313439271,-500.0,0.00019859,2]
[351057497,1738313439280,-500.0,0.00019863,9]
[351057498,1738313439290,-153.0,0.00019863,2]
[351057499,1738313439299,-153.0,0.00019863,2]
[351057500,1738313439308,-154.4000799,0.00019863,2]
[351057501,1738313439318,-153.0,0.00019863,2]
[351057502,1738313439327,-215.5610874,0.00019863,2]
[351057503,1738313439337,-153.0,0.00019863,2]
[351057504,1738313439346,-215.5610874,0.00019863,2]
[351057505,1738313439355,-153.0,0.00019863,2]
[351057506,1738313439364,-153.0,0.00019863,2]
[351057507,1738313439373,-154.4000799,0.00019863,2]
[351057508,1738313439382,-154.4000799,0.00019863,2]
[351057509,1738313439391,-153.0,0.00019863,2]
[351057510,1738313439399,-153.0,0.00019863,2]
[351057511,1738313439409,-215.5610874,0.00019863,2]
[351057512,1738313439418,-153.0,0.00019863,2]
[351057513,1738313439427,-154.4000799,0.00019863,2]
[351057514,1738313439436,-153.0,0.00019863,2]
[351057515,1738313439445,-215.5610874,0.00019863,2]
[351057516,1738313439455,-153.0,0.00019863,2]
[351057517,1738313439464,-153.0,0.00019863,2]
[351057518,1738313439473,-154.4000799,0.00019863,2]
[351057519,1738313439482,-153.0,0.00019863,2]
[351057520,1738313439491,-215.5610874,0.00019863,2]
[351057521,1738313439501,-215.5610874,0.00019863,2]
[351057522,1738313439510,-154.4000799,0.00019863,2]
[351057523,1738313439519,-215.5610874,0.00019863,2]
[351057524,1738313439529,-154.4000799,0.00019863,2]
[351057525,1738313439538,-153.0,0.00019863,2]
[351057526,1738313439548,-153.0,0.00019863,2]
[351057527,1738313439558,-215.5610874,0.00019863,2]
[351057528,1738313439567,-154.4000799,0.00019863,2]
[351057529,1738313439576,-215.5610874,0.00019863,2]
[351057530,1738313439588,-153.0,0.00019863,2]
[351057531,1738313439597,-154.4000799,0.00019863,2]
[351057532,1738313439606,-215.5610874,0.00019863,2]
[351057533,1738313439616,-154.4000799,0.00019863,2]
[351057534,1738313439626,-272.3360821,0.00019863,2]
[351057535,1738313439635,-154.4000799,0.00019863,2]
[351057536,1738313439644,-154.4000799,0.00019863,2]
[351057537,1738313439654,-154.4000799,0.00019863,2]
[351057538,1738313439663,-153.1948335,0.00019863,2]
[351057539,1738313439673,-1200.0,0.00019882,2]
[351057540,1738313439682,-614.85154783,0.000199,2]
[351057541,1738313439691,-500.0,0.0001991,2]
[351057542,1738313439700,-500.0,0.0001991,2]
[351057543,1738313439709,-699.46577462,0.00019931,2]
[351057544,1738313439720,-454.45456363,0.0001995,4]
[351057545,1738313439859,-500.0,0.00019996,2]
[351057546,1738313439869,-500.0,0.00019996,2]
[351057547,1738313439878,-160.0,0.0002,2]
[351057548,1738313439887,-150.0,0.0002,5]
[351057549,1738313439897,-150.0,0.0002,30]
[351057550,1738313439906,-614.85154777,0.00020003,2]
[351057551,1738313439915,-699.46577462,0.00020031,2]
[351057552,1738313439924,-500.0,0.00020047,2]
[351057553,1738313439933,-500.0,0.00020047,2]
[351057554,1738313439942,-614.85154777,0.00020107,2]
[351057555,1738313439951,-699.46577462,0.00020131,2]
[351057556,1738313439961,-500.0,0.00020133,2]
[351057557,1738313439970,-500.0,0.00020133,2]
[351057558,1738313439980,-454.45456363,0.0002014,4]
[351057559,1738313439989,-231.0,0.00020172,2]
[351057560,1738313439999,-231.0,0.00020172,2]
[351057562,1738313440009,-231.0,0.00020172,2]
[351057564,1738313440019,-231.0,0.00020172,2]
[351057566,1738313440028,-231.0,0.00020172,2]
[351057568,1738313440038,-231.0,0.00020172,2]
[351057569,1738313440047,-231.0,0.00020172,2]
[351057570,1738313440057,-231.0,0.00020172,2]
[351057571,1738313440066,-231.0,0.00020172,2]
[351057572,1738313440076,-231.0,0.00020172,2]
[351057573,1738313440086,-231.0,0.00020172,2]
[351057574,1738313440095,-231.0,0.00020172,2]
[351057575,1738313440105,-231.0,0.00020172,2]
[351057576,1738313440115,-231.0,0.00020172,2]
[351057577,1738313440125,-231.0,0.00020172,2]
[351057578,1738313440136,-231.0,0.00020172,2]
[351057579,1738313440145,-231.0,0.00020172,2]
[351057581,1738313440154,-231.0,0.00020172,2]
[351057583,1738313440163,-231.0,0.00020172,2]
[351057584,1738313440173,-363.59,0.00020172,2]
[351057585,1738313440183,-154.0,0.00020172,2]
[351057586,1738313440192,-154.0,0.00020172,2]
[351057587,1738313440202,-154.0,0.00020172,2]
[351057588,1738313440211,-154.0,0.00020172,2]
[351057589,1738313440222,-154.0,0.00020172,2]
[351057590,1738313440231,-154.0,0.00020172,2]
[351057592,1738313440241,-154.0,0.00020172,2]
[351057594,1738313440251,-154.0,0.00020172,2]
[351057595,1738313440262,-154.0,0.00020172,2]
[351057596,1738313440271,-154.0,0.00020172,2]
[351057597,1738313440282,-154.0,0.00020172,2]
[351057598,1738313440292,-154.0,0.00020172,2]
[351057599,1738313440302,-154.0,0.00020172,2]
[351057600,1738313440311,-154.0,0.00020172,2]
[351057601,1738313440321,-154.0,0.00020172,2]
[351057602,1738313440332,-154.0,0.00020172,2]
[351057603,1738313440342,-154.0,0.00020172,2]
[351057604,1738313440351,-154.0,0.00020172,2]
[351057605,1738313440361,-154.0,0.00020172,2]
[351057606,1738313440371,-154.0,0.00020172,2]
[351057607,1738313440380,-184.45,0.00020172,2]
[351057608,1738313440391,-418.93498386,0.00020184,2]
[351057616,1738313441210,-81.06501614,0.00020184,2]
[351057617,1738313441220,-500.0,0.00020184,2]
[351057618,1738313441230,-614.85154777,0.0002021,2]
[351057619,1738313441239,-627.19362257,0.00020231,2]
[351057637,1738313443736,-1480.01,0.000192,2]
[351057644,1738313443792,-37.51,0.000192,2]
[351057646,1738313443801,-72.27215205,0.00020231,2]
[351057648,1738313443811,-500.0,0.0002027,2]
[351057650,1738313443820,-500.0,0.0002027,2]
[351057652,1738313443829,-614.85154777,0.00020314,2]
[351057654,1738313443839,-500.0,0.00020321,2]
[351057656,1738313443848,-294.58,0.00020321,2]
[351057658,1738313443857,-454.45456363,0.0002033,4]
[351057660,1738313443866,-699.46577462,0.00020331,2]
[351057662,1738313443875,-606.501,0.00020407,2]
[351057664,1738313443885,-614.85154777,0.00020417,2]
[351057666,1738313443894,-297.0,0.0002043,3]
[351057668,1738313443903,-699.46577462,0.00020431,2]
[351057670,1738313443912,-164.554519,0.00020447,2]
[351057672,1738313443921,-500.0,0.00020458,2]
[351057674,1738313443931,-160.0,0.00020499,5]
[351057676,1738313443940,-454.45456363,0.0002052,4]
[351057678,1738313443949,-614.85154777,0.00020521,2]
[351057680,1738313443958,-699.46577462,0.00020531,2]
[351057682,1738313443967,-500.0,0.00020547,11]
[351057684,1738313443977,-369.84404735,0.00020548,2]
[351057686,1738313443986,-587.0,0.00020577,2]
[351057688,1738313443996,-34.55606882,0.00020595,2]
[351057690,1738313444008,-433.53130639,0.00020595,2]
[351057692,1738313444018,-614.85154777,0.00020624,2]
[351057694,1738313444028,-699.46577462,0.00020631,2]
[351057696,1738313444037,-277.93,0.00020644,15]
[351057698,1738313444047,-153.6906943,0.00020685,2]
[351057701,1738313444056,-453.31899504,0.0002071,4]
[351057703,1738313444066,-614.85154777,0.00020728,2]
[351057705,1738313444075,-699.46577462,0.00020731,2]
[351057706,1738313444085,-700.0,0.0002074,2]
[351057708,1738313444095,-286.75309492,0.00020764,2]
[351057831,1738313952776,165.232013,0.00013973,2]
[351057835,1738314631250,4338.63841753,0.0001545,2]
[351058014,1738314639896,-300.0,0.00015469,2]
[351058015,1738314639906,-2700.66,0.000164,2]
[351058060,1738314802165,173.24671,0.00013973,2]
[351058061,1738314892559,1261.62753226,0.0001545,2]
[351058062,1738315311877,2265.1592428,0.0001545,2]
[351058063,1738315320328,196.88305979,0.0001545,2]
[351058064,1738315335601,260.574837,0.0001545,2]
[351058065,1738315394067,638.51848901,0.00015352,2]
[351058066,1738315403099,1545.0,0.00010959,2]
[351058067,1738315413582,1287.5,0.00010959,2]
[351058068,1738315424131,1072.92,0.00010959,2]
[351058069,1738315434882,894.1,0.00010959,2]
[351058070,1738315446112,745.08,0.00010959,2]
[351058071,1738315456845,620.9,0.00010959,2]
[351058072,1738315478048,517.42,0.00010959,2]
[351058073,1738315488801,431.18,0.00010959,2]
[351058074,1738315499098,359.32,0.00010959,2]
[351058075,1738315509677,299.43,0.00010959,2]
[351058076,1738315520109,249.53,0.00010959,2]
[351058077,1738315530688,207.94,0.00010959,2]
[351058078,1738315541115,173.28,0.00010959,2]
[351058080,1738315551633,866.44,0.00010959,2]
[351058082,1738315585635,24900.0,0.00015425,2]
[351058085,1738315617614,180.990269,0.00013973,2]
[351058161,1738315832203,-695.55638,0.00016338,2]
[351058163,1738315832214,-299.34,0.000164,2]
[351058165,1738315832223,-154.313,0.000164,2]
[351058167,1738315832232,-489.76780917,0.0001641,2]
[351058182,1738315832365,-2510.23219083,0.0001641,2]
[351058184,1738315832375,-99.73665852,0.0001642,2]
[351058209,1738315838031,-781.27293045,0.0001642,2]
[351058253,1738315843195,-494.18,0.0001642,2]
[351058274,1738315846043,-1624.81041103,0.0001642,2]
[351058275,1738315846052,-300.0,0.00016429,2]
[351058276,1738315846062,-3000.0,0.0001643,2]
[351058277,1738315846071,-500.0,0.00016438,2]
[351058278,1738315846081,-500.0,0.00016438,2]
[351058279,1738315846090,-501.79114185,0.00016438,2]
[351058280,1738315846100,-500.0,0.00016438,2]
[351058281,1738315846109,-494.95366369,0.00016438,2]
[351058282,1738315846119,-500.0,0.00016438,2]
[351058283,1738315846129,-186.29873438,0.00016438,2]
[351058284,1738315846139,-500.0,0.00016438,2]
[351058285,1738315846148,-500.0,0.00016438,2]
[351058286,1738315846158,-500.0,0.00016438,2]
[351058287,1738315846167,-473.13,0.00016438,2]
[351058288,1738315846177,-500.0,0.00016438,2]
[351058289,1738315846186,-500.0,0.00016438,2]
[351058290,1738315846196,-500.0,0.00016438,2]
[351058291,1738315846206,-500.0,0.00016438,2]
[351058292,1738315846215,-518.86564882,0.00016438,2]
[351058293,1738315846225,-500.0,0.00016438,2]
[351058294,1738315846234,-500.0,0.00016438,2]
[351058295,1738315846244,-500.0,0.00016438,2]
[351058296,1738315846396,-500.0,0.00016438,2]
[351058297,1738315846405,-502.36238528,0.00016438,2]
[351058298,1738315846414,-500.0,0.00016438,2]
[351058299,1738315846424,-500.0,0.00016438,2]
[351058300,1738315846434,-500.0,0.00016438,2]
[351058301,1738315846444,-500.0,0.00016438,2]
[351058302,1738315846454,-500.0,0.00016438,2]
[351058303,1738315846465,-500.0,0.00016438,2]
[351058304,1738315846475,-500.0,0.00016438,2]
[351058305,1738315846484,-501.92441151,0.00016438,2]
[351058306,1738315846497,-500.0,0.00016438,2]
[351058307,1738315846507,-500.0,0.00016438,2]
[351058308,1738315846517,-500.0,0.00016438,2]
[351058309,1738315846527,-500.0,0.00016438,2]
[351058310,1738315846537,-500.0,0.00016438,2]
[351058311,1738315846546,-500.0,0.00016438,2]
[351058312,1738315846556,-500.0,0.00016438,2]
[351058313,1738315846566,-500.0,0.00016438,2]
[351058314,1738315846576,-500.0,0.00016438,2]
[351058315,1738315846586,-500.0,0.00016438,2]
[351058316,1738315846595,-500.0,0.00016438,2]
[351058317,1738315846605,-500.0,0.00016438,2]
[351058318,1738315846614,-500.0,0.00016438,2]
[351058319,1738315846624,-500.0,0.00016438,2]
[351058320,1738315846633,-500.0,0.00016438,2]
[351058321,1738315846643,-500.0,0.00016438,2]
[351058322,1738315846652,-500.0,0.00016438,2]
[351058323,1738315846662,-500.0,0.00016438,2]
[351058324,1738315846672,-500.0,0.00016438,2]
[351058325,1738315846682,-500.0,0.00016438,2]
[351058326,1738315846691,-517.54206974,0.00016438,2]
[351058327,1738315846701,-500.0,0.00016438,2]
[351058328,1738315846712,-500.0,0.00016438,2]
[351058329,1738315846723,-500.0,0.00016438,2]
[351058330,1738315846733,-651.91,0.00016438,2]
[351058331,1738315846742,-500.0,0.00016438,2]
[351058332,1738315846752,-500.0,0.00016438,2]
[351058333,1738315846762,-500.0,0.00016438,2]
[351058334,1738315846772,-500.0,0.00016438,2]
[351058335,1738315846781,-500.0,0.00016438,2]
[351058336,1738315846792,-500.0,0.00016438,2]
[351058337,1738315846801,-500.0,0.00016438,2]
[351058338,1738315846811,-500.0,0.00016438,2]
[351058339,1738315846820,-500.0,0.00016438,2]
[351058340,1738315846830,-500.0,0.00016438,2]
[351058341,1738315846839,-500.0,0.00016438,2]
[351058342,1738315846849,-500.0,0.00016438,2]
[351058343,1738315846858,-500.0,0.00016438,2]
[351058344,1738315846868,-500.0,0.00016438,2]
[351058345,1738315846878,-279.29041085,0.00016438,2]
[351058346,1738315846887,-500.0,0.00016438,2]
[351058347,1738315846897,-500.0,0.00016438,2]
[351058348,1738315846906,-500.0,0.00016438,2]
[351058349,1738315846917,-500.0,0.00016438,2]
[351058350,1738315846926,-500.0,0.00016438,2]
[351058351,1738315846936,-500.0,0.00016438,2]
[351058352,1738315846947,-500.0,0.00016438,2]
[351058353,1738315846958,-500.0,0.00016438,2]
[351058354,1738315846968,-500.0,0.00016438,2]
[351058355,1738315846978,-500.0,0.00016438,2]
[351058356,1738315846987,-500.0,0.00016438,2]
[351058357,1738315846997,-500.0,0.00016438,2]
[351058358,1738315847007,-500.0,0.00016438,2]
[351058359,1738315847017,-500.0,0.00016438,2]
[351058360,1738315847026,-500.0,0.00016438,2]
[351058361,1738315847036,-641.91324913,0.00016438,2]
[351058362,1738315847046,-500.0,0.00016438,2]
[351058363,1738315847055,-3000.0,0.0001644,2]
[351058364,1738315847065,-3000.0,0.0001645,2]
[351058365,1738315847074,-151.0,0.0001645,2]
[351058366,1738315847084,-151.0,0.0001645,2]
[351058367,1738315847094,-234.093354,0.0001645,2]
[351058368,1738315847104,-151.0,0.0001645,2]
[351058369,1738315847113,-3000.0,0.0001646,2]
[351058370,1738315847122,-500.0,0.00016469,2]
[351058371,1738315847132,-3000.0,0.0001647,2]
[351058372,1738315847142,-3000.0,0.0001648,2]
[351058373,1738315847151,-3000.0,0.0001649,2]
[351058374,1738315847161,-3000.0,0.000165,2]
[351058375,1738315847171,-226.60265583,0.000165,2]
[351058376,1738315847180,-151.0,0.000165,2]
[351058377,1738315847190,-151.0,0.000165,2]
[351058378,1738315847199,-3000.0,0.0001651,2]
[351058379,1738315847211,-3000.0,0.0001652,2]
[351058380,1738315847221,-251.54762207,0.00016522,2]
[351058381,1738315847231,-1667.38919398,0.0001653,2]
[351058386,1738316206205,233.122321,0.00013699,2]
[351058387,1738316612369,171.940755,0.00013973,2]
[351058392,1738316867165,250.0,0.00015283,2]
[351058504,1738317391349,3159.5952162,0.00015433,2]
[351058506,1738317517804,99.44681332,0.00013973,2]
[351058507,1738317517834,63.89690368,0.00013973,2]
[351058560,1738318232524,-654.86091982,0.0001533,2]
[351058562,1738318232536,-216.41972017,0.0001533,2]
[351058564,1738318232546,-200.6926653,0.000154,2]
[351058566,1738318232556,-202.4142444,0.00015405,2]
[351058568,1738318232565,-206.2655781,0.0001543,2]
[351058570,1738318232575,-2193.9657953,0.00016364,2]
[351058572,1738318232585,-3000.0,0.000164,2]
[351058574,1738318232595,-3000.0,0.0001641,2]
[351058576,1738318232605,-300.0,0.00016419,2]
[351058578,1738318232615,-3000.0,0.0001642,2]
[351058580,1738318232624,-3000.0,0.0001643,2]
[351058582,1738318232634,-500.0,0.00016438,2]
[351058584,1738318232643,-500.0,0.00016438,2]
[351058586,1738318232653,-500.0,0.00016438,2]
[351058588,1738318232663,-500.0,0.00016438,2]
[351058590,1738318232672,-501.20210509,0.00016438,2]
[351058592,1738318232681,-500.0,0.00016438,2]
[351058594,1738318232692,-500.0,0.00016438,2]
[351058596,1738318232702,-500.0,0.00016438,2]
[351058598,1738318232712,-500.0,0.00016438,2]
[351058599,1738318232721,-500.0,0.00016438,2]
[351058600,1738318232731,-500.0,0.00016438,2]
[351058602,1738318232741,-500.0,0.00016438,2]
[351058603,1738318232750,-500.0,0.00016438,2]
[351058604,1738318232760,-500.0,0.00016438,2]
[351058605,1738318232769,-500.0,0.00016438,2]
[351058606,1738318232778,-500.0,0.00016438,2]
[351058607,1738318232788,-500.0,0.00016438,2]
[351058608,1738318232797,-500.0,0.00016438,2]
[351058609,1738318232807,-500.0,0.00016438,2]
[351058610,1738318232816,-549.64,0.00016438,2]
[351058611,1738318232826,-500.0,0.00016438,2]
[351058612,1738318232836,-500.0,0.00016438,2]
[351058613,1738318232845,-446.84352173,0.00016438,2]
[351058614,1738318232855,-500.0,0.00016439,2]
[351058615,1738318232864,-501.75703181,0.00016439,2]
[351058616,1738318232874,-502.04530904,0.00016439,2]
[351058617,1738318232884,-501.20303368,0.00016439,2]
[351058618,1738318232893,-500.0,0.00016439,2]
[351058619,1738318232903,-500.0,0.00016439,2]
[351058620,1738318232912,-500.0,0.00016439,2]
[351058621,1738318232921,-500.0,0.00016439,2]
[351058622,1738318232931,-500.0,0.00016439,2]
[351058623,1738318232941,-500.91212247,0.00016439,2]
[351058624,1738318232951,-507.20707268,0.00016439,2]
[351058625,1738318232960,-500.0,0.00016439,2]
[351058626,1738318232970,-500.0,0.00016439,2]
[351058627,1738318232979,-500.0,0.00016439,2]
[351058628,1738318232989,-513.82727135,0.00016439,2]
[351058629,1738318232998,-500.0,0.00016439,2]
[351058630,1738318233008,-500.0,0.00016439,2]
[351058631,1738318233018,-500.0,0.00016439,2]
[351058632,1738318233028,-500.0,0.00016439,2]
[351058633,1738318233038,-500.0,0.00016439,2]
[351058634,1738318233047,-211.5784816,0.00016439,2]
[351058635,1738318233057,-500.0,0.00016439,2]
[351058636,1738318233067,-500.0,0.00016439,2]
[351058637,1738318233076,-500.0,0.00016439,2]
[351058638,1738318233086,-528.34524524,0.00016439,2]
[351058639,1738318233096,-200.0,0.00016439,2]
[351058640,1738318233105,-500.0,0.00016439,2]
[351058641,1738318233114,-523.26795905,0.00016439,2]
[351058642,1738318233124,-151.0,0.00016439,2]
[351058643,1738318233134,-263.050706,0.00016439,2]
[351058644,1738318233144,-151.0,0.00016439,2]
[351058645,1738318233153,-151.0,0.00016439,2]
[351058646,1738318233163,-151.0,0.00016439,2]
[351058647,1738318233310,-151.0,0.00016439,2]
[351058648,1738318233326,-500.0,0.00016439,2]
[351058649,1738318233336,-151.0,0.00016439,2]
[351058650,1738318233346,-151.0,0.00016439,2]
[351058651,1738318233356,-151.0,0.00016439,2]
[351058653,1738318233366,-151.0,0.00016439,2]
[351058655,1738318233376,-500.0,0.00016439,2]
[351058656,1738318233387,-171.888464,0.00016439,2]
[351058657,1738318233396,-256.13949928,0.00016439,2]
[351058658,1738318233406,-151.0,0.00016439,2]
[351058659,1738318233416,-500.0,0.00016439,2]
[351058660,1738318233426,-500.0,0.00016439,2]
[351058662,1738318233436,-151.0,0.00016439,2]
[351058664,1738318233446,-151.0,0.00016439,2]
[351058665,1738318233456,-151.0,0.00016439,2]
[351058667,1738318233466,-151.0,0.00016439,2]
[351058669,1738318233478,-151.0,0.00016439,2]
[351058670,1738318233490,-151.0,0.00016439,2]
[351058672,1738318233501,-500.0,0.00016439,2]
[351058674,1738318233511,-500.0,0.00016439,2]
[351058676,1738318233521,-500.0,0.00016439,2]
[351058678,1738318233531,-500.0,0.00016439,2]
[351058679,1738318233541,-500.0,0.00016439,2]
[351058680,1738318233551,-500.0,0.00016439,2]
[351058681,1738318233560,-500.0,0.00016439,2]
[351058682,1738318233569,-208.051506,0.00016439,2]
[351058683,1738318233579,-500.0,0.00016439,2]
[351058684,1738318233589,-152.373879,0.00016439,2]
[351058685,1738318233598,-500.0,0.00016439,2]
[351058686,1738318233607,-151.0,0.00016439,2]
[351058687,1738318233617,-500.0,0.00016439,2]
[351058688,1738318233627,-500.0,0.00016439,2]
[351058689,1738318233637,-151.0,0.00016439,2]
[351058690,1738318233646,-151.0,0.00016439,2]
[351058691,1738318233656,-151.0,0.00016439,2]
[351058692,1738318233665,-500.0,0.00016439,2]
[351058693,1738318233674,-219.751668,0.00016439,2]
[351058694,1738318233684,-500.0,0.00016439,2]
[351058695,1738318233694,-151.0,0.00016439,2]
[351058696,1738318233704,-500.0,0.00016439,2]
[351058697,1738318233715,-500.0,0.00016439,2]
[351058698,1738318233725,-501.31913381,0.00016439,2]
[351058699,1738318233735,-500.0,0.00016439,2]
[351058700,1738318233745,-500.0,0.00016439,2]
[351058701,1738318233755,-151.0,0.00016439,2]
[351058702,1738318233765,-500.0,0.00016439,2]
[351058703,1738318233774,-500.0,0.00016439,2]
[351058704,1738318233785,-500.0,0.00016439,2]
[351058705,1738318233794,-500.0,0.00016439,2]
[351058706,1738318233804,-500.0,0.00016439,2]
[351058707,1738318233813,-500.0,0.00016439,2]
[351058708,1738318233823,-500.0,0.00016439,2]
[351058709,1738318233833,-1061.88,0.00016439,2]
[351058710,1738318233843,-500.0,0.00016439,2]
[351058711,1738318233853,-500.0,0.00016439,2]
[351058712,1738318233863,-500.0,0.00016439,2]
[351058713,1738318233873,-500.0,0.00016439,2]
[351058714,1738318233882,-500.0,0.00016439,2]
[351058715,1738318233892,-500.0,0.00016439,2]
[351058716,1738318233902,-500.0,0.00016439,2]
[351058717,1738318233911,-500.0,0.00016439,2]
[351058718,1738318233921,-356.6652349,0.00016439,2]
[351058719,1738318233931,-151.0,0.00016439,2]
[351058720,1738318233941,-151.0,0.00016439,2]
[351058721,1738318233950,-151.0,0.00016439,2]
[351058722,1738318233960,-151.0,0.00016439,2]
[351058723,1738318233970,-151.0,0.00016439,2]
[351058724,1738318233986,-423.8417542,0.00016439,2]
[351058725,1738318233999,-151.0,0.00016439,2]
[351058726,1738318234009,-151.0,0.00016439,2]
[351058727,1738318234019,-500.0,0.00016439,2]
[351058728,1738318234029,-500.0,0.00016439,2]
[351058729,1738318234039,-500.0,0.00016439,2]
[351058730,1738318234048,-500.0,0.00016439,2]
[351058731,1738318234058,-151.0,0.00016439,2]
[351058732,1738318234068,-500.0,0.00016439,2]
[351058733,1738318234077,-151.0,0.00016439,2]
[351058734,1738318234087,-500.0,0.00016439,2]
[351058735,1738318234097,-500.0,0.00016439,2]
[351058736,1738318234106,-500.0,0.00016439,2]
[351058737,1738318234116,-418.73119519,0.00016439,2]
[351058738,1738318234125,-445.47,0.00016439,2]
[351058739,1738318234136,-4913.645075,0.0001644,2]
[351058740,1738318234145,-151.0,0.0001644,2]
[351058741,1738318234155,-151.0,0.0001644,2]
[351058742,1738318234164,-151.0,0.0001644,2]
[351058743,1738318234173,-151.0,0.0001644,2]
[351058744,1738318234182,-154.313,0.0001647,2]
[351058745,1738318234192,-172.10795662,0.00016473,2]
[351058746,1738318234201,-500.0,0.00016473,2]
[351058747,1738318234211,-500.0,0.00016473,2]
[351058748,1738318234221,-500.0,0.00016473,2]
[351058749,1738318234230,-500.0,0.00016473,2]
[351058750,1738318234239,-520.68859544,0.00016473,2]
[351058751,1738318234249,-500.0,0.00016473,2]
[351058752,1738318234259,-500.0,0.00016473,2]
[351058753,1738318234268,-500.0,0.00016499,2]
[351058754,1738318234278,-2226.62891006,0.000165,2]